[Event "Titled Tuesday Blitz May 11 2021"]
[White "Quparadze, Giga"]
[Black "Ten Hertog, Hugo"]
[WhiteFideId "13602250"]
[BlackFideId "1026356"]
[WhiteElo "2658"]
[BlackElo "2493"]
[Result "0-1"]
[Round "03"]
[TimeControl "180+1"]
[Date "2021.05.11"]
[WhiteClock "0:00:17"]
[BlackClock "0:00:11"]

1. e4 {[%clk 0:03:00]}  g6 {[%clk 0:02:58]} 2. d4 {[%clk 0:03:00]}  Bg7 {[%clk 0:02:59]} 3. Nc3 {[%clk 0:03:00]}  d6 {[%clk 0:02:59]} 4. Bg5 {[%clk 0:03:00]}  a6 {[%clk 0:02:58]} 5. Qd2 {[%clk 0:02:59]}  Nd7 {[%clk 0:02:57]} 6. O-O-O {[%clk 0:02:58]}  b5 {[%clk 0:02:56]} 7. f4 {[%clk 0:02:58]}  c5 {[%clk 0:02:42]} 8. dxc5 {[%clk 0:02:54]}  Nxc5 {[%clk 0:02:43]} 9. e5 {[%clk 0:02:54]}  b4 {[%clk 0:02:39]} 10. Nd5 {[%clk 0:02:54]}  Ne4 {[%clk 0:02:37]} 11. Qxb4 {[%clk 0:02:45]}  Nxg5 {[%clk 0:02:36]} 12. exd6 {[%clk 0:02:18]}  Ne6 {[%clk 0:02:13]} 13. dxe7 {[%clk 0:02:12]}  Nxe7 {[%clk 0:02:09]} 14. Nb6 {[%clk 0:02:11]}  Bd4 {[%clk 0:01:23]} 15. Rxd4 {[%clk 0:01:55]}  Nxd4 {[%clk 0:01:22]} 16. Nxa8 {[%clk 0:01:54]}  O-O {[%clk 0:01:18]} 17. Qb6 {[%clk 0:01:29]}  Bf5 {[%clk 0:00:53]} 18. Qxd8 {[%clk 0:01:27]}  Rxd8 {[%clk 0:00:54]} 19. Nb6 {[%clk 0:01:27]}  Nxc2 {[%clk 0:00:54]} 20. Bc4 {[%clk 0:01:17]}  Ne3 {[%clk 0:00:52]} 21. Nf3 {[%clk 0:01:18]}  Nxg2 {[%clk 0:00:32]} 22. Ne5 {[%clk 0:01:11]}  Be6 {[%clk 0:00:29]} 23. Bxe6 {[%clk 0:01:01]}  fxe6 {[%clk 0:00:30]} 24. Rf1 {[%clk 0:01:01]}  Ne3 {[%clk 0:00:29]} 25. Re1 {[%clk 0:01:00]}  N7f5 {[%clk 0:00:30]} 26. Nbc4 {[%clk 0:00:58]}  Ng2 {[%clk 0:00:25]} 27. Re4 {[%clk 0:00:53]}  Rd4 {[%clk 0:00:23]} 28. Rxd4 {[%clk 0:00:45]}  Nxd4 {[%clk 0:00:24]} 29. Nd7 {[%clk 0:00:45]}  Nxf4 {[%clk 0:00:22]} 30. Nc5 {[%clk 0:00:45]}  g5 {[%clk 0:00:18]} 31. Nxa6 {[%clk 0:00:45]}  h5 {[%clk 0:00:19]} 32. b4 {[%clk 0:00:43]}  g4 {[%clk 0:00:19]} 33. Ne3 {[%clk 0:00:42]}  Nd5 {[%clk 0:00:18]} 34. Nf1 {[%clk 0:00:39]}  h4 {[%clk 0:00:18]} 35. a4 {[%clk 0:00:38]}  Nf3 {[%clk 0:00:13]} 36. Kd1 {[%clk 0:00:34]}  Nxh2 {[%clk 0:00:11]} 37. Nxh2 {[%clk 0:00:34]}  g3 {[%clk 0:00:11]} 38. Nf3 {[%clk 0:00:20]}  h3 {[%clk 0:00:11]} 39. Ke2 {[%clk 0:00:17]}  h2 {[%clk 0:00:11]} 0-1


[Site "https://www.chess.com"]

[Event "Titled Tuesday Blitz May 11 2021"]
[White "Rojas Alarcon, Julian Antonio"]
[Black "Timmermans, Mark"]
[WhiteFideId "5107407"]
[BlackFideId "1026399"]
[WhiteElo "2333"]
[BlackElo "2460"]
[Result "0-1"]
[Round "03"]
[TimeControl "180+1"]
[Date "2021.05.11"]
[WhiteClock "0:01:56"]
[BlackClock "0:01:29"]

1. c4 {[%clk 0:03:00]}  Nf6 {[%clk 0:02:59]} 2. Nc3 {[%clk 0:03:01]}  e5 {[%clk 0:02:58]} 3. g3 {[%clk 0:03:01]}  d5 {[%clk 0:02:58]} 4. cxd5 {[%clk 0:03:02]}  Nxd5 {[%clk 0:02:59]} 5. Bg2 {[%clk 0:03:03]}  Nb6 {[%clk 0:02:59]} 6. Nf3 {[%clk 0:03:03]}  Nc6 {[%clk 0:02:59]} 7. d3 {[%clk 0:03:04]}  Be7 {[%clk 0:03:00]} 8. O-O {[%clk 0:03:05]}  O-O {[%clk 0:03:00]} 9. Be3 {[%clk 0:03:06]}  Be6 {[%clk 0:03:00]} 10. Rc1 {[%clk 0:03:07]}  f6 {[%clk 0:03:01]} 11. a3 {[%clk 0:03:06]}  Qd7 {[%clk 0:03:00]} 12. d4 {[%clk 0:03:00]}  exd4 {[%clk 0:02:56]} 13. Nxd4 {[%clk 0:03:01]}  Nxd4 {[%clk 0:02:57]} 14. Qxd4 {[%clk 0:03:02]}  Qxd4 {[%clk 0:02:51]} 15. Bxd4 {[%clk 0:03:03]}  c6 {[%clk 0:02:51]} 16. Ne4 {[%clk 0:03:03]}  Rad8 {[%clk 0:02:45]} 17. Bc5 {[%clk 0:03:03]}  Kf7 {[%clk 0:02:43]} 18. Bxe7 {[%clk 0:02:59]}  Kxe7 {[%clk 0:02:44]} 19. Nc5 {[%clk 0:03:00]}  Bc8 {[%clk 0:02:43]} 20. b4 {[%clk 0:02:51]}  Rd2 {[%clk 0:02:23]} 21. Rfe1 {[%clk 0:02:46]}  Rfd8 {[%clk 0:02:22]} 22. e4 {[%clk 0:02:44]}  Rb2 {[%clk 0:01:56]} 23. Rcd1 {[%clk 0:02:23]}  Rxd1 {[%clk 0:01:54]} 24. Rxd1 {[%clk 0:02:24]}  Nc4 {[%clk 0:01:47]} 25. Ra1 {[%clk 0:02:07]}  Nxa3 {[%clk 0:01:47]} 26. Nxb7 {[%clk 0:01:56]}  Nc2 {[%clk 0:01:29]} 0-1


[Site "https://www.chess.com"]

[Event "Titled Tuesday Blitz May 11 2021"]
[White "Rychkov, Oleg"]
[Black "Yoo, Christopher Woojin"]
[WhiteFideId "4122852"]
[BlackFideId "30909694"]
[WhiteElo "2493"]
[BlackElo "2009"]
[Result "1/2-1/2"]
[Round "03"]
[TimeControl "180+1"]
[Date "2021.05.11"]
[WhiteClock "0:00:17"]
[BlackClock "0:00:06"]

1. e4 {[%clk 0:03:00]}  c5 {[%clk 0:02:55]} 2. Nf3 {[%clk 0:03:00]}  e6 {[%clk 0:02:54]} 3. d4 {[%clk 0:02:57]}  cxd4 {[%clk 0:02:55]} 4. Nxd4 {[%clk 0:02:58]}  Nf6 {[%clk 0:02:55]} 5. Nc3 {[%clk 0:02:58]}  Qb6 {[%clk 0:02:55]} 6. Nb3 {[%clk 0:02:54]}  Bb4 {[%clk 0:02:46]} 7. Bd3 {[%clk 0:02:52]}  d6 {[%clk 0:02:44]} 8. Be3 {[%clk 0:02:51]}  Bxc3+ {[%clk 0:02:39]} 9. bxc3 {[%clk 0:02:51]}  Qc7 {[%clk 0:02:38]} 10. Qd2 {[%clk 0:02:35]}  e5 {[%clk 0:02:36]} 11. f3 {[%clk 0:02:32]}  Be6 {[%clk 0:02:36]} 12. O-O {[%clk 0:02:31]}  O-O {[%clk 0:02:36]} 13. Nc1 {[%clk 0:02:20]}  Nbd7 {[%clk 0:02:34]} 14. Ne2 {[%clk 0:02:20]}  Nb6 {[%clk 0:02:33]} 15. Qe1 {[%clk 0:02:15]}  Nc4 {[%clk 0:02:13]} 16. Bg5 {[%clk 0:02:14]}  Nd7 {[%clk 0:02:13]} 17. f4 {[%clk 0:02:09]}  exf4 {[%clk 0:02:07]} 18. Nxf4 {[%clk 0:02:06]}  Qc5+ {[%clk 0:02:05]} 19. Rf2 {[%clk 0:01:51]}  Qxg5 {[%clk 0:01:53]} 20. Nxe6 {[%clk 0:01:50]}  fxe6 {[%clk 0:01:53]} 21. Bxc4 {[%clk 0:01:50]}  Qe5 {[%clk 0:01:51]} 22. Rb1 {[%clk 0:01:45]}  Nc5 {[%clk 0:01:46]} 23. Re2 {[%clk 0:01:35]}  Rf7 {[%clk 0:01:29]} 24. Rd1 {[%clk 0:01:33]}  Raf8 {[%clk 0:01:27]} 25. Qg3 {[%clk 0:01:29]}  Rf4 {[%clk 0:01:17]} 26. Bd3 {[%clk 0:01:03]}  Qxc3 {[%clk 0:01:10]} 27. e5 {[%clk 0:01:00]}  Nxd3 {[%clk 0:01:06]} 28. cxd3 {[%clk 0:00:57]}  dxe5 {[%clk 0:01:02]} 29. h3 {[%clk 0:00:56]}  e4 {[%clk 0:00:54]} 30. Kh2 {[%clk 0:00:48]}  exd3 {[%clk 0:00:39]} 31. Rxe6 {[%clk 0:00:43]}  Rd4 {[%clk 0:00:26]} 32. Re7 {[%clk 0:00:43]}  Rdd8 {[%clk 0:00:25]} 33. Rxb7 {[%clk 0:00:38]}  a5 {[%clk 0:00:25]} 34. Rb3 {[%clk 0:00:34]}  Qc2 {[%clk 0:00:21]} 35. Rdxd3 {[%clk 0:00:34]}  Rxd3 {[%clk 0:00:21]} 36. Rxd3 {[%clk 0:00:34]}  Qxa2 {[%clk 0:00:21]} 37. Rd7 {[%clk 0:00:34]}  Qb2 {[%clk 0:00:21]} 38. Ra7 {[%clk 0:00:31]}  Rf5 {[%clk 0:00:18]} 39. Ra8+ {[%clk 0:00:25]}  Rf8 {[%clk 0:00:16]} 40. Rxa5 {[%clk 0:00:25]}  Qf6 {[%clk 0:00:15]} 41. Ra7 {[%clk 0:00:25]}  h6 {[%clk 0:00:15]} 42. Qc7 {[%clk 0:00:23]}  Kh7 {[%clk 0:00:14]} 43. Qg3 {[%clk 0:00:23]}  Rf7 {[%clk 0:00:12]} 44. Qd3+ {[%clk 0:00:20]}  g6 {[%clk 0:00:10]} 45. Rxf7+ {[%clk 0:00:18]}  Qxf7 {[%clk 0:00:11]} 46. Qg3 {[%clk 0:00:18]}  Kg7 {[%clk 0:00:11]} 47. h4 {[%clk 0:00:18]}  Qf5 {[%clk 0:00:10]} 48. Qc7+ {[%clk 0:00:17]}  Kg8 {[%clk 0:00:09]} 49. Qd8+ {[%clk 0:00:16]}  Kf7 {[%clk 0:00:10]} 50. Qc7+ {[%clk 0:00:16]}  Ke8 {[%clk 0:00:10]} 51. Qg3 {[%clk 0:00:16]}  Kd7 {[%clk 0:00:09]} 52. Qe3 {[%clk 0:00:16]}  h5 {[%clk 0:00:08]} 53. g3 {[%clk 0:00:16]}  Kd6 {[%clk 0:00:08]} 54. Kg2 {[%clk 0:00:16]}  Qd5+ {[%clk 0:00:07]} 55. Kh2 {[%clk 0:00:15]}  Qe5 {[%clk 0:00:05]} 56. Qd3+ {[%clk 0:00:15]}  Ke7 {[%clk 0:00:05]} 57. Qxg6 {[%clk 0:00:15]}  Qe2+ {[%clk 0:00:05]} 58. Kg1 {[%clk 0:00:16]}  Qe1+ {[%clk 0:00:05]} 59. Kg2 {[%clk 0:00:16]}  Qe2+ {[%clk 0:00:06]} 60. Kg1 {[%clk 0:00:16]}  Qe1+ {[%clk 0:00:06]} 61. Kg2 {[%clk 0:00:17]}  Qe2+ {[%clk 0:00:06]} 62. Kg1 {[%clk 0:00:17]} 1/2-1/2


[Site "https://www.chess.com"]

[Event "Titled Tuesday Blitz May 11 2021"]
[White "Sadhwani, Raunak"]
[Black "Lopez Del Alamo, Antonio"]
[WhiteFideId "35093487"]
[BlackFideId "2227339"]
[WhiteElo "2514"]
[BlackElo "2098"]
[Result "1-0"]
[Round "03"]
[TimeControl "180+1"]
[Date "2021.05.11"]
[WhiteClock "0:01:47"]
[BlackClock "0:00:11"]

1. b3 {[%clk 0:03:00]}  Nf6 {[%clk 0:02:52]} 2. Bb2 {[%clk 0:03:01]}  g6 {[%clk 0:02:51]} 3. Nf3 {[%clk 0:03:02]}  Bg7 {[%clk 0:02:50]} 4. g3 {[%clk 0:03:03]}  O-O {[%clk 0:02:47]} 5. Bg2 {[%clk 0:03:03]}  d5 {[%clk 0:02:46]} 6. c4 {[%clk 0:03:00]}  c6 {[%clk 0:02:15]} 7. O-O {[%clk 0:02:59]}  Bg4 {[%clk 0:02:06]} 8. Ne5 {[%clk 0:02:58]}  Be6 {[%clk 0:01:51]} 9. d4 {[%clk 0:02:52]}  Nbd7 {[%clk 0:01:47]} 10. Nd2 {[%clk 0:02:48]}  dxc4 {[%clk 0:01:37]} 11. Nexc4 {[%clk 0:02:45]}  Nb6 {[%clk 0:01:30]} 12. Qc2 {[%clk 0:02:44]}  Qc8 {[%clk 0:00:58]} 13. Rfe1 {[%clk 0:02:42]}  Rd8 {[%clk 0:00:54]} 14. e4 {[%clk 0:02:41]}  Ne8 {[%clk 0:00:46]} 15. Nf3 {[%clk 0:02:36]}  Bh3 {[%clk 0:00:38]} 16. Bh1 {[%clk 0:02:35]}  Bg4 {[%clk 0:00:29]} 17. Rad1 {[%clk 0:02:32]}  Bxf3 {[%clk 0:00:27]} 18. Bxf3 {[%clk 0:02:33]}  Nxc4 {[%clk 0:00:27]} 19. bxc4 {[%clk 0:02:34]}  c5 {[%clk 0:00:25]} 20. d5 {[%clk 0:02:32]}  Bxb2 {[%clk 0:00:23]} 21. Qxb2 {[%clk 0:02:33]}  Nd6 {[%clk 0:00:20]} 22. Qc3 {[%clk 0:02:24]}  b6 {[%clk 0:00:20]} 23. e5 {[%clk 0:02:18]}  Nf5 {[%clk 0:00:20]} 24. Bg4 {[%clk 0:02:19]}  e6 {[%clk 0:00:19]} 25. Bxf5 {[%clk 0:02:18]}  gxf5 {[%clk 0:00:18]} 26. Qe3 {[%clk 0:02:18]}  Kh8 {[%clk 0:00:18]} 27. Qh6 {[%clk 0:02:16]}  Rg8 {[%clk 0:00:17]} 28. Qf6+ {[%clk 0:02:15]}  Rg7 {[%clk 0:00:17]} 29. Rd3 {[%clk 0:02:15]}  Qd8 {[%clk 0:00:15]} 30. dxe6 {[%clk 0:01:48]}  Qxd3 {[%clk 0:00:14]} 31. exf7 {[%clk 0:01:48]}  Rf8 {[%clk 0:00:13]} 32. e6 {[%clk 0:01:48]}  Qd4 {[%clk 0:00:11]} 33. e7 {[%clk 0:01:47]} 1-0


[Site "https://www.chess.com"]

[Event "Titled Tuesday Blitz May 11 2021"]
[White "Sadovsky, Artem"]
[Black "Lomasov, Semyon"]
[WhiteFideId "4155840"]
[BlackFideId "24164879"]
[WhiteElo "2476"]
[BlackElo "2445"]
[Result "0-1"]
[Round "03"]
[TimeControl "180+1"]
[Date "2021.05.11"]
[WhiteClock "0:00:10"]
[BlackClock "0:00:28"]

1. Nf3 {[%clk 0:03:00]}  b6 {[%clk 0:02:58]} 2. g3 {[%clk 0:02:56]}  Bb7 {[%clk 0:02:59]} 3. Bg2 {[%clk 0:02:57]}  c5 {[%clk 0:02:59]} 4. O-O {[%clk 0:02:57]}  g6 {[%clk 0:02:59]} 5. d4 {[%clk 0:02:53]}  cxd4 {[%clk 0:02:59]} 6. Nxd4 {[%clk 0:02:51]}  Bxg2 {[%clk 0:03:00]} 7. Kxg2 {[%clk 0:02:52]}  Bg7 {[%clk 0:02:59]} 8. c3 {[%clk 0:02:46]}  Nf6 {[%clk 0:02:55]} 9. Qd3 {[%clk 0:02:42]}  d5 {[%clk 0:02:52]} 10. Rd1 {[%clk 0:02:42]}  Nbd7 {[%clk 0:02:41]} 11. Bg5 {[%clk 0:02:31]}  Qc8 {[%clk 0:02:40]} 12. Nd2 {[%clk 0:02:13]}  O-O {[%clk 0:02:32]} 13. Qb5 {[%clk 0:01:53]}  a6 {[%clk 0:02:01]} 14. Qc6 {[%clk 0:01:51]}  Qb8 {[%clk 0:01:31]} 15. Qa4 {[%clk 0:01:36]}  Rc8 {[%clk 0:01:22]} 16. Rac1 {[%clk 0:01:23]}  Qb7 {[%clk 0:01:12]} 17. Kg1 {[%clk 0:01:18]}  Nc5 {[%clk 0:01:04]} 18. Qc2 {[%clk 0:01:09]}  Nfe4 {[%clk 0:01:00]} 19. Nxe4 {[%clk 0:01:09]}  Nxe4 {[%clk 0:01:01]} 20. Be3 {[%clk 0:01:09]}  e6 {[%clk 0:00:56]} 21. Nf3 {[%clk 0:01:09]}  b5 {[%clk 0:00:49]} 22. Bd4 {[%clk 0:01:10]}  b4 {[%clk 0:00:49]} 23. Bxg7 {[%clk 0:01:09]}  Kxg7 {[%clk 0:00:50]} 24. Qd3 {[%clk 0:01:04]}  bxc3 {[%clk 0:00:48]} 25. bxc3 {[%clk 0:01:05]}  Qb5 {[%clk 0:00:39]} 26. Qd4+ {[%clk 0:00:32]}  f6 {[%clk 0:00:40]} 27. Rd3 {[%clk 0:00:20]}  Rc4 {[%clk 0:00:37]} 28. Qe3 {[%clk 0:00:20]}  Rac8 {[%clk 0:00:37]} 29. Nd4 {[%clk 0:00:20]}  Qd7 {[%clk 0:00:34]} 30. f3 {[%clk 0:00:19]}  Nc5 {[%clk 0:00:35]} 31. Rdd1 {[%clk 0:00:19]}  e5 {[%clk 0:00:35]} 32. Nb3 {[%clk 0:00:19]}  Na4 {[%clk 0:00:34]} 33. Rd3 {[%clk 0:00:17]}  Qf7 {[%clk 0:00:34]} 34. Kg2 {[%clk 0:00:15]}  h5 {[%clk 0:00:31]} 35. Nd2 {[%clk 0:00:15]}  d4 {[%clk 0:00:28]} 36. Qe4 {[%clk 0:00:10]}  Nxc3 {[%clk 0:00:28]} 0-1


[Site "https://www.chess.com"]

[Event "Titled Tuesday Blitz May 11 2021"]
[White "Sanchez Jimenez, Juan Carlos"]
[Black "Kukhmazov, Arsen"]
[WhiteFideId "2206331"]
[BlackFideId "24108260"]
[WhiteElo "2265"]
[BlackElo "2453"]
[Result "0-1"]
[Round "03"]
[TimeControl "180+1"]
[Date "2021.05.11"]
[WhiteClock "0:00:01"]
[BlackClock "0:00:37"]

1. d4 {[%clk 0:03:00]}  d5 {[%clk 0:03:00]} 2. c4 {[%clk 0:02:58]}  c6 {[%clk 0:03:00]} 3. cxd5 {[%clk 0:02:57]}  cxd5 {[%clk 0:03:01]} 4. Nf3 {[%clk 0:02:57]}  Nc6 {[%clk 0:03:01]} 5. Nc3 {[%clk 0:02:58]}  Nf6 {[%clk 0:03:01]} 6. Bf4 {[%clk 0:02:58]}  Nh5 {[%clk 0:03:01]} 7. Bd2 {[%clk 0:02:57]}  e6 {[%clk 0:02:58]} 8. e3 {[%clk 0:02:55]}  Bd6 {[%clk 0:02:57]} 9. Ne5 {[%clk 0:02:53]}  Nf6 {[%clk 0:02:56]} 10. Nxc6 {[%clk 0:02:52]}  bxc6 {[%clk 0:02:57]} 11. Rc1 {[%clk 0:02:48]}  O-O {[%clk 0:02:56]} 12. Bd3 {[%clk 0:02:48]}  e5 {[%clk 0:02:47]} 13. dxe5 {[%clk 0:02:27]}  Bxe5 {[%clk 0:02:47]} 14. O-O {[%clk 0:02:26]}  c5 {[%clk 0:02:15]} 15. f4 {[%clk 0:02:13]}  Bb8 {[%clk 0:02:13]} 16. Na4 {[%clk 0:02:10]}  c4 {[%clk 0:02:13]} 17. Bb1 {[%clk 0:02:07]}  Bg4 {[%clk 0:02:02]} 18. Qe1 {[%clk 0:02:03]}  Qd7 {[%clk 0:01:58]} 19. b3 {[%clk 0:01:40]}  Re8 {[%clk 0:01:57]} 20. Qh4 {[%clk 0:01:30]}  d4 {[%clk 0:01:41]} 21. exd4 {[%clk 0:01:24]}  Qxd4+ {[%clk 0:01:42]} 22. Rf2 {[%clk 0:01:24]}  Re2 {[%clk 0:01:32]} 23. Bc3 {[%clk 0:01:07]}  Qe3 {[%clk 0:01:32]} 24. Bxf6 {[%clk 0:01:00]}  Qxc1+ {[%clk 0:01:27]} 25. Rf1 {[%clk 0:01:00]}  Qe3+ {[%clk 0:01:15]} 26. Kh1 {[%clk 0:00:59]}  gxf6 {[%clk 0:01:10]} 27. Qxg4+ {[%clk 0:00:57]}  Kf8 {[%clk 0:00:48]} 28. Qc8+ {[%clk 0:00:39]}  Qe8 {[%clk 0:00:47]} 29. Qxc4 {[%clk 0:00:38]}  Bd6 {[%clk 0:00:45]} 30. Qd5 {[%clk 0:00:16]}  Rd8 {[%clk 0:00:42]} 31. Qh5 {[%clk 0:00:14]}  Qe3 {[%clk 0:00:40]} 32. Qh6+ {[%clk 0:00:08]}  Ke7 {[%clk 0:00:40]} 33. Qxh7 {[%clk 0:00:06]}  Re1 {[%clk 0:00:40]} 34. Bd3 {[%clk 0:00:04]}  Bxf4 {[%clk 0:00:39]} 35. Qf5 {[%clk 0:00:01]}  Rxd3 {[%clk 0:00:37]} 0-1


[Site "https://www.chess.com"]

[Event "Titled Tuesday Blitz May 11 2021"]
[White "Santiago, Yago De Moura"]
[Black "Gunina, Valentina"]
[WhiteFideId "2103877"]
[BlackFideId "4167570"]
[WhiteElo "2475"]
[BlackElo "2399"]
[Result "0-1"]
[Round "03"]
[TimeControl "180+1"]
[Date "2021.05.11"]
[WhiteClock "0:00:11"]
[BlackClock "0:01:47"]

1. d4 {[%clk 0:03:00]}  d5 {[%clk 0:02:59]} 2. Nc3 {[%clk 0:02:59]}  Nf6 {[%clk 0:02:56]} 3. Bf4 {[%clk 0:03:00]}  e6 {[%clk 0:02:56]} 4. e3 {[%clk 0:03:00]}  Be7 {[%clk 0:02:56]} 5. g4 {[%clk 0:02:59]}  O-O {[%clk 0:02:55]} 6. g5 {[%clk 0:03:00]}  Ne8 {[%clk 0:02:52]} 7. h4 {[%clk 0:02:59]}  c5 {[%clk 0:02:52]} 8. Nf3 {[%clk 0:02:58]}  Nc6 {[%clk 0:02:50]} 9. Bd3 {[%clk 0:02:57]}  c4 {[%clk 0:02:49]} 10. Be2 {[%clk 0:02:20]}  b5 {[%clk 0:02:49]} 11. a3 {[%clk 0:02:11]}  b4 {[%clk 0:02:24]} 12. axb4 {[%clk 0:02:09]}  Bxb4 {[%clk 0:02:24]} 13. Kf1 {[%clk 0:02:09]}  Nd6 {[%clk 0:02:23]} 14. Na2 {[%clk 0:01:40]}  Ba5 {[%clk 0:02:18]} 15. Kg2 {[%clk 0:01:41]}  Ne4 {[%clk 0:02:18]} 16. c3 {[%clk 0:01:29]}  Bc7 {[%clk 0:02:14]} 17. Bxc7 {[%clk 0:01:06]}  Qxc7 {[%clk 0:02:13]} 18. Qc2 {[%clk 0:01:07]}  f5 {[%clk 0:02:12]} 19. Nb4 {[%clk 0:01:02]}  Nxb4 {[%clk 0:02:08]} 20. cxb4 {[%clk 0:01:03]}  f4 {[%clk 0:02:08]} 21. Ra3 {[%clk 0:00:34]}  fxe3 {[%clk 0:02:00]} 22. Rxe3 {[%clk 0:00:35]}  Qf4 {[%clk 0:02:00]} 23. h5 {[%clk 0:00:26]}  e5 {[%clk 0:02:00]} 24. Rh4 {[%clk 0:00:15]}  Bg4 {[%clk 0:01:57]} 25. Kf1 {[%clk 0:00:16]}  Ng3+ {[%clk 0:01:54]} 26. Ke1 {[%clk 0:00:15]}  Nxe2 {[%clk 0:01:49]} 27. Qxe2 {[%clk 0:00:12]}  exd4 {[%clk 0:01:49]} 28. Re7 {[%clk 0:00:11]}  Qc1+ {[%clk 0:01:47]} 0-1


[Site "https://www.chess.com"]

[Event "Titled Tuesday Blitz May 11 2021"]
[White "Sethuraman, S.P."]
[Black "Wadsworth, Matthew J"]
[WhiteFideId "5021596"]
[BlackFideId "415804"]
[WhiteElo "2477"]
[BlackElo "2293"]
[Result "1-0"]
[Round "03"]
[TimeControl "180+1"]
[Date "2021.05.11"]
[WhiteClock "0:02:15"]
[BlackClock "0:01:03"]

1. e4 {[%clk 0:03:00]}  c5 {[%clk 0:02:59]} 2. Nf3 {[%clk 0:03:01]}  e6 {[%clk 0:02:59]} 3. d4 {[%clk 0:03:00]}  cxd4 {[%clk 0:03:00]} 4. Nxd4 {[%clk 0:03:01]}  Nc6 {[%clk 0:03:00]} 5. Nc3 {[%clk 0:03:00]}  Qc7 {[%clk 0:03:00]} 6. Be3 {[%clk 0:02:58]}  a6 {[%clk 0:02:59]} 7. a3 {[%clk 0:02:58]}  Nf6 {[%clk 0:02:45]} 8. f4 {[%clk 0:02:58]}  Nxd4 {[%clk 0:02:39]} 9. Qxd4 {[%clk 0:02:56]}  b5 {[%clk 0:02:32]} 10. Be2 {[%clk 0:02:46]}  Bb7 {[%clk 0:02:28]} 11. Bf3 {[%clk 0:02:41]}  Rc8 {[%clk 0:02:05]} 12. e5 {[%clk 0:02:24]}  Bxf3 {[%clk 0:02:04]} 13. exf6 {[%clk 0:02:20]}  Bxg2 {[%clk 0:01:54]} 14. fxg7 {[%clk 0:02:20]}  Bxg7 {[%clk 0:01:45]} 15. Qxg7 {[%clk 0:02:21]}  Bxh1 {[%clk 0:01:40]} 16. Qxh8+ {[%clk 0:02:21]}  Ke7 {[%clk 0:01:40]} 17. Qxh7 {[%clk 0:02:20]}  Bf3 {[%clk 0:01:08]} 18. Qh4+ {[%clk 0:02:16]}  Ke8 {[%clk 0:01:03]} 19. Kf2 {[%clk 0:02:15]} 1-0


[Site "https://www.chess.com"]

[Event "Titled Tuesday Blitz May 11 2021"]
[White "Skatchkov, Pavel"]
[Black "Anton Guijarro, David"]
[WhiteFideId "4121848"]
[BlackFideId "2285525"]
[WhiteElo "2476"]
[BlackElo "2629"]
[Result "0-1"]
[Round "03"]
[TimeControl "180+1"]
[Date "2021.05.11"]
[WhiteClock "0:01:18"]
[BlackClock "0:01:15"]

1. d4 {[%clk 0:03:00]}  Nf6 {[%clk 0:02:59]} 2. c4 {[%clk 0:03:01]}  e6 {[%clk 0:02:58]} 3. Nf3 {[%clk 0:03:01]}  d5 {[%clk 0:02:56]} 4. g3 {[%clk 0:03:01]}  Bb4+ {[%clk 0:02:54]} 5. Nbd2 {[%clk 0:03:00]}  O-O {[%clk 0:02:52]} 6. Bg2 {[%clk 0:03:01]}  dxc4 {[%clk 0:02:49]} 7. O-O {[%clk 0:03:01]}  b5 {[%clk 0:02:41]} 8. e4 {[%clk 0:02:59]}  Bb7 {[%clk 0:02:38]} 9. e5 {[%clk 0:02:57]}  Nd5 {[%clk 0:02:36]} 10. Qc2 {[%clk 0:02:51]}  Be7 {[%clk 0:02:33]} 11. a3 {[%clk 0:02:50]}  Nd7 {[%clk 0:02:29]} 12. Ne4 {[%clk 0:02:50]}  h6 {[%clk 0:02:29]} 13. Rd1 {[%clk 0:02:26]}  c5 {[%clk 0:02:29]} 14. Be3 {[%clk 0:02:08]}  Nxe3 {[%clk 0:02:21]} 15. fxe3 {[%clk 0:02:08]}  Qb6 {[%clk 0:02:21]} 16. h4 {[%clk 0:01:53]}  Rad8 {[%clk 0:02:20]} 17. g4 {[%clk 0:01:52]}  cxd4 {[%clk 0:02:15]} 18. exd4 {[%clk 0:01:51]}  f5 {[%clk 0:01:41]} 19. exf6 {[%clk 0:01:47]}  Nxf6 {[%clk 0:01:41]} 20. Nf2 {[%clk 0:01:44]}  Bxf3 {[%clk 0:01:40]} 21. Bxf3 {[%clk 0:01:43]}  Rxd4 {[%clk 0:01:40]} 22. Qe2 {[%clk 0:01:42]}  Rf4 {[%clk 0:01:35]} 23. Kg2 {[%clk 0:01:39]}  Nd5 {[%clk 0:01:28]} 24. Rxd5 {[%clk 0:01:18]}  Rxf3 {[%clk 0:01:15]} 0-1


[Site "https://www.chess.com"]

[Event "Titled Tuesday Blitz May 11 2021"]
[White "Spitzl, Vinzent"]
[Black "Krysa, Leandro"]
[WhiteFideId "12901253"]
[BlackFideId "116807"]
[WhiteElo "2192"]
[BlackElo "2490"]
[Result "0-1"]
[Round "03"]
[TimeControl "180+1"]
[Date "2021.05.11"]
[WhiteClock "0:00:04"]
[BlackClock "0:00:15"]

1. e4 {[%clk 0:03:00]}  e6 {[%clk 0:03:00]} 2. d4 {[%clk 0:02:59]}  d5 {[%clk 0:03:00]} 3. e5 {[%clk 0:03:00]}  c5 {[%clk 0:02:59]} 4. c3 {[%clk 0:03:00]}  Nc6 {[%clk 0:02:58]} 5. Nf3 {[%clk 0:02:58]}  Qb6 {[%clk 0:02:58]} 6. a3 {[%clk 0:02:57]}  Nh6 {[%clk 0:02:54]} 7. b4 {[%clk 0:02:53]}  cxd4 {[%clk 0:02:54]} 8. cxd4 {[%clk 0:02:54]}  Nf5 {[%clk 0:02:54]} 9. Bb2 {[%clk 0:02:53]}  Be7 {[%clk 0:02:52]} 10. Nc3 {[%clk 0:02:44]}  O-O {[%clk 0:02:48]} 11. Na4 {[%clk 0:02:44]}  Qd8 {[%clk 0:02:44]} 12. Bd3 {[%clk 0:02:43]}  b6 {[%clk 0:02:37]} 13. Rc1 {[%clk 0:02:36]}  Bd7 {[%clk 0:02:36]} 14. Bxf5 {[%clk 0:02:25]}  exf5 {[%clk 0:02:36]} 15. O-O {[%clk 0:02:19]}  Rc8 {[%clk 0:02:35]} 16. Nc3 {[%clk 0:02:14]}  Be6 {[%clk 0:02:33]} 17. g3 {[%clk 0:02:09]}  Qd7 {[%clk 0:02:23]} 18. Qd2 {[%clk 0:02:03]}  a5 {[%clk 0:02:18]} 19. b5 {[%clk 0:02:02]}  Na7 {[%clk 0:02:18]} 20. Qe2 {[%clk 0:01:52]}  Rc4 {[%clk 0:02:11]} 21. a4 {[%clk 0:01:30]}  Rfc8 {[%clk 0:02:04]} 22. Qd3 {[%clk 0:01:20]}  f4 {[%clk 0:01:44]} 23. gxf4 {[%clk 0:01:13]}  Bf5 {[%clk 0:01:44]} 24. Qe3 {[%clk 0:01:12]}  Bh3 {[%clk 0:01:32]} 25. Nd2 {[%clk 0:01:08]}  Qg4+ {[%clk 0:01:24]} 26. Qg3 {[%clk 0:01:03]}  Rxd4 {[%clk 0:01:10]} 27. Nf3 {[%clk 0:00:47]}  Rd3 {[%clk 0:01:05]} 28. Qxg4 {[%clk 0:00:39]}  Bxg4 {[%clk 0:01:06]} 29. Ne1 {[%clk 0:00:34]}  Rd2 {[%clk 0:00:50]} 30. Ba1 {[%clk 0:00:30]}  d4 {[%clk 0:00:39]} 31. f3 {[%clk 0:00:20]}  Bh3 {[%clk 0:00:39]} 32. Rf2 {[%clk 0:00:10]}  dxc3 {[%clk 0:00:36]} 33. Bxc3 {[%clk 0:00:08]}  Rxf2 {[%clk 0:00:28]} 34. Kxf2 {[%clk 0:00:09]}  Bb4 {[%clk 0:00:26]} 35. Bb2 {[%clk 0:00:08]}  Rxc1 {[%clk 0:00:26]} 36. Bxc1 {[%clk 0:00:09]}  Bxe1+ {[%clk 0:00:26]} 37. Kxe1 {[%clk 0:00:09]}  Nc8 {[%clk 0:00:25]} 38. Be3 {[%clk 0:00:07]}  Kf8 {[%clk 0:00:23]} 39. Kd2 {[%clk 0:00:07]}  Ke7 {[%clk 0:00:24]} 40. Kd3 {[%clk 0:00:06]}  Ke6 {[%clk 0:00:23]} 41. Kd4 {[%clk 0:00:06]}  Bf5 {[%clk 0:00:21]} 42. h4 {[%clk 0:00:05]}  Bc2 {[%clk 0:00:21]} 43. Kc3 {[%clk 0:00:04]}  Bxa4 {[%clk 0:00:21]} 44. Kc4 {[%clk 0:00:05]}  Bd1 {[%clk 0:00:19]} 45. f5+ {[%clk 0:00:04]}  Kxe5 {[%clk 0:00:15]} 0-1


[Site "https://www.chess.com"]